bitfinex-derivatives/quotes_ETHF0:USTF0_20260119
["timestamp","ask_amount","ask_price","bid_price","bid_amount"]
[1768820185872,0.93049756,3216.4,3215.4,0.29864033]
[1768820186174,0.00240282,3216.8,3215.4,0.29864033]
[1768820186377,0.9304634,3216.7,3215.4,0.29864033]
[1768820186572,0.9304634,3216.6,3215.5,0.15559]
[1768820186773,0.9304634,3216.5,3215.5,0.15559]
[1768820186976,0.00240282,3216.8,3215.5,0.15559]
[1768820186977,0.9304634,3216.4,3215.5,0.15559]
[1768820187167,0.00240282,3216.8,3215.5,0.15559]
[1768820187367,0.93043869,3216.7,3215.5,0.15559]
[1768820187566,0.93043869,3216.6,3215.5,0.15559]
[1768820187771,0.93043869,3216.5,3215.5,0.15559]
[1768820187965,0.00240282,3216.8,3215.6,0.13876054]
[1768820188170,0.00240282,3216.8,3216.0,0.15557]
[1768820188374,0.00240282,3216.8,3216.0,0.15939823]
[1768820196482,0.00240282,3216.8,3216.1,0.13876054]
[1768820196682,1.67991882,3217.8,3216.1,0.13876054]
[1768820197582,1.68232029,3217.8,3216.1,0.13876054]
[1768820197784,1.78026065,3217.8,3216.1,0.13876054]
[1768820199984,0.92541913,3217.7,3216.1,0.13876054]
[1768820200282,0.92541913,3217.6,3216.1,0.13876054]
[1768820200479,0.92541913,3217.5,3216.1,0.13876054]
[1768820200670,0.92541913,3217.4,3216.1,0.13876054]
[1768820200873,0.92541913,3217.3,3216.1,0.13876054]
[1768820201078,0.92541913,3217.2,3216.1,0.13876054]
[1768820201383,1.78026065,3217.8,3216.1,0.13876054]
[1768820201584,0.92548465,3217.7,3216.1,0.13876054]
[1768820201775,1.78026065,3217.8,3216.1,0.13876054]
[1768820201776,0.92548465,3217.6,3216.1,0.13876054]
[1768820202076,0.92548465,3217.5,3216.1,0.13876054]
[1768820202279,0.92548465,3217.4,3216.1,0.13876054]
[1768820202480,0.92548465,3217.3,3216.1,0.13876054]
[1768820202679,0.92548465,3217.2,3216.1,0.13876054]
[1768820202882,1.78026065,3217.8,3216.1,0.13876054]
[1768820203080,0.92555356,3217.7,3216.1,0.13876054]
[1768820203281,0.92555356,3217.6,3216.1,0.13876054]
[1768820203488,0.92555356,3217.5,3216.1,0.13876054]
[1768820203682,0.92555356,3217.4,3216.1,0.13876054]
[1768820203883,0.92555356,3217.3,3216.1,0.13876054]
[1768820204086,0.92555356,3217.2,3216.1,0.13876054]
[1768820204287,1.78026065,3217.8,3216.1,0.13876054]
[1768820204489,0.92567989,3217.7,3216.1,0.13876054]
[1768820204680,0.92567989,3217.6,3216.1,0.13876054]
[1768820204881,0.92567989,3217.5,3216.1,0.13876054]
[1768820205088,0.92567989,3217.4,3216.1,0.13876054]
[1768820205286,0.92567989,3217.3,3216.1,0.13876054]
[1768820205486,0.92567989,3217.2,3216.1,0.13876054]
[1768820205683,1.67991882,3217.7,3216.1,0.13876054]
[1768820205882,0.92573735,3217.6,3216.1,0.13876054]
[1768820206083,0.92573735,3217.5,3216.1,0.13876054]
[1768820206389,0.92573735,3217.4,3216.1,0.13876054]
[1768820206580,0.92573735,3217.3,3216.1,0.13876054]
[1768820206881,0.92573735,3217.2,3216.1,0.13876054]
[1768820207077,1.67991882,3217.7,3216.1,0.13876054]
[1768820207278,0.92586467,3217.6,3216.1,0.13876054]
[1768820207480,0.92586467,3217.5,3216.1,0.13876054]
[1768820207680,0.92586467,3217.4,3216.1,0.13876054]
[1768820207889,0.92586467,3217.3,3216.1,0.13876054]
[1768820208086,0.92586467,3217.2,3216.1,0.13876054]
[1768820208289,1.77793061,3217.7,3216.1,0.13876054]
[1768820208498,0.92595584,3217.6,3216.1,0.13876054]
[1768820208689,0.92595584,3217.5,3216.1,0.13876054]
[1768820208890,0.92595584,3217.4,3216.1,0.13876054]
[1768820209076,0.92595584,3217.3,3216.1,0.13876054]
[1768820209280,0.92595584,3217.2,3216.1,0.13876054]
[1768820209481,1.77793061,3217.7,3216.1,0.13876054]
[1768820209682,1.02409113,3217.6,3216.1,0.13876054]
[1768820209894,0.92607483,3217.5,3216.1,0.13876054]
[1768820211890,0.9097965,3217.5,3216.7,0.14172548]
[1768820212094,0.00240147,3217.8,3216.7,0.14172548]
[1768820212390,0.00240147,3217.8,3216.3,0.14172548]
[1768820213795,0.00240147,3217.8,3216.7,0.00466774]
[1768820231017,1.03276063,3217.7,3216.7,0.00466774]
[1768820231312,0.92549451,3217.6,3216.7,0.00466774]
[1768820231504,1.03276063,3217.7,3216.7,0.00466774]
[1768820231705,0.9255154,3217.6,3216.7,0.00466774]
[1768820232010,1.03276063,3217.7,3216.7,0.00466774]
[1768820232204,0.92550975,3217.6,3216.7,0.00466774]
[1768820232405,1.03276063,3217.7,3216.7,0.00466774]
[1768820232611,0.92559192,3217.6,3216.7,0.00466774]
[1768820232910,1.03198267,3217.3,3216.7,0.00466774]
[1768820234808,1.03198267,3217.5,3216.7,0.00466774]
[1768820240817,0.92662232,3217.4,3216.7,0.00466774]
[1768820241016,1.03198267,3217.5,3216.7,0.00466774]
[1768820241213,0.92662507,3217.4,3216.7,0.00466774]
[1768820241416,1.03198267,3217.5,3216.7,0.00466774]
[1768820241611,0.92684606,3217.4,3216.7,0.00466774]
[1768820241812,1.03198267,3217.5,3216.7,0.00466774]
[1768820242110,0.92684606,3217.4,3216.7,0.00466774]
[1768820242311,1.03198267,3217.5,3216.7,0.00466774]
[1768820242518,0.92684511,3217.4,3216.7,0.00466774]
[1768820242816,1.03198267,3217.5,3216.7,0.00466774]
[1768820243009,0.92684511,3217.4,3216.7,0.00466774]
[1768820243208,1.03198267,3217.6,3216.7,0.00466774]
[1768820243410,0.92685974,3217.5,3216.7,0.00466774]
[1768820243612,0.92685974,3217.4,3216.7,0.00466774]
[1768820243918,1.03198267,3217.6,3216.7,0.00466774]
[1768820244115,0.92685893,3217.5,3216.7,0.00466774]
[1768820244422,0.92685893,3217.4,3216.7,0.00466774]
[1768820244721,1.03198267,3217.6,3216.7,0.00466774]
[1768820244923,0.92685305,3217.5,3216.7,0.00466774]
[1768820245110,0.00240147,3217.8,3216.7,0.00466774]
[1768820245319,0.92685899,3217.7,3216.7,0.13917889]
[1768820245515,0.92685899,3217.6,3216.7,0.13917889]
[1768820245712,0.92685899,3217.5,3216.7,0.13917889]
[1768820245918,0.00240147,3217.8,3216.7,0.13917889]
[1768820246225,0.92685931,3217.7,3216.7,0.13917889]
[1768820246523,0.92685931,3217.6,3216.7,0.13917889]
[1768820246720,0.92685931,3217.5,3216.7,0.13917889]
[1768820246920,0.00240147,3217.8,3216.7,0.13917889]
[1768820247123,0.92595377,3217.7,3216.7,0.13917889]
[1768820247308,0.92595377,3217.6,3216.7,0.13917889]
[1768820247516,0.00240147,3217.8,3216.7,0.13917889]
[1768820247723,0.92593295,3217.7,3216.7,0.13917889]
[1768820247922,0.00240147,3217.8,3216.7,0.13917889]
[1768820248123,0.92593278,3217.7,3216.7,0.13917889]
[1768820248333,0.00240147,3217.8,3216.7,0.13917889]
[1768820248540,0.92593867,3217.7,3216.7,0.13917889]
[1768820248733,0.00240147,3217.8,3216.7,0.13917889]
[1768820249018,0.92593867,3217.7,3216.7,0.13917889]
[1768820249328,0.00240147,3217.8,3216.7,0.13917889]
[1768820249531,0.925943,3217.7,3216.7,0.13917889]
[1768820249723,0.00240147,3217.8,3216.7,0.13917889]
[1768820249923,0.92594122,3217.7,3216.8,0.13451115]
[1768820250225,0.00240147,3217.8,3216.8,0.13451115]
[1768820250427,0.92650379,3217.7,3216.8,0.13451115]
[1768820250630,0.00240147,3217.8,3216.8,0.13451115]
[1768820250828,0.92650361,3217.7,3216.8,0.13451115]
[1768820251028,0.00240147,3217.8,3216.8,0.13451115]
[1768820251230,0.92649844,3217.7,3216.8,0.13451115]
[1768820251533,0.00240147,3217.8,3216.8,0.13451115]
[1768820251735,0.92649852,3217.7,3216.8,0.13451115]
[1768820252029,0.00240147,3217.8,3216.8,0.13451115]
[1768820252231,0.92649281,3217.7,3216.8,0.13451115]
[1768820252529,0.00240147,3217.8,3216.8,0.13451115]
[1768820252828,0.92649281,3217.7,3216.8,0.13451115]
[1768820253132,0.00240147,3217.8,3216.8,0.13451115]
[1768820253429,0.9264829,3217.7,3216.8,0.13451115]
[1768820253632,0.00240147,3217.8,3216.8,0.13451115]
[1768820253839,0.9264829,3217.7,3216.8,0.13451115]
[1768820254027,0.00240147,3217.8,3216.8,0.13451115]
[1768820264137,1.03198267,3217.7,3216.8,0.13451115]
[1768820264436,1.03198267,3217.5,3216.7,0.16019774]
[1768820268739,1.03198267,3217.5,3216.7,0.00466774]
[1768820274942,1.03198267,3217.3,3216.1,0.15556]
[1768820275441,1.03198267,3217.3,3216.1,0.29626475]
[1768820275643,1.03198267,3217.3,3216.2,0.14070475]
[1768820280143,0.00466774,3217.4,3216.2,0.14070475]
[1768820280350,0.00466774,3217.4,3216.3,0.14070475]
[1768820281749,0.00466774,3217.4,3216.4,0.14070475]
[1768820287459,1.03665041,3217.4,3216.4,0.14070475]
[1768820294160,0.92675457,3217.3,3216.4,0.14070475]
[1768820294464,1.03665041,3217.4,3216.4,0.14070475]
[1768820294664,0.92676246,3217.3,3216.4,0.14070475]
[1768820294868,0.00466774,3217.4,3216.4,0.14070475]
[1768820295068,0.92676246,3217.3,3216.4,0.14070475]
[1768820295255,0.00466774,3217.4,3216.4,0.14070475]
[1768820295453,0.92682511,3217.3,3216.4,0.14070475]
[1768820295658,0.00466774,3217.4,3216.0,0.14453298]
[1768820295858,0.9268419,3217.3,3216.0,0.14453298]
[1768820296170,0.92685943,3217.2,3216.0,0.14453298]
[1768820296371,0.00466774,3217.4,3216.0,0.14453298]
[1768820296567,0.92688283,3217.3,3216.0,0.14453298]
[1768820296763,0.92688283,3217.2,3216.0,0.14453298]
[1768820296966,0.00466774,3217.4,3216.0,0.14453298]
[1768820297163,0.92688257,3217.3,3216.0,0.14453298]
[1768820297362,0.92688257,3217.2,3216.0,0.14453298]
[1768820297564,0.00466774,3217.4,3216.0,0.14453298]
[1768820297763,0.92692785,3217.3,3216.0,0.14453298]
[1768820297974,0.92692785,3217.2,3216.0,0.14453298]
[1768820298170,0.00466774,3217.4,3216.0,0.14453298]
[1768820298467,0.92693904,3217.3,3216.0,0.14453298]
[1768820298674,0.92693904,3217.2,3216.0,0.14453298]
[1768820298865,0.00466774,3217.4,3216.0,0.14453298]
[1768820299065,0.92693904,3217.3,3216.0,0.14453298]
[1768820299266,0.92693904,3217.2,3216.0,0.14453298]
[1768820299564,0.92693904,3217.1,3216.0,0.14453298]
[1768820299764,0.00466774,3217.4,3216.0,0.14453298]
[1768820299965,0.92694554,3217.3,3216.0,0.14453298]
[1768820300270,0.92694554,3217.2,3216.0,0.14453298]
[1768820300572,0.92694554,3217.1,3216.0,0.14453298]
[1768820300769,0.00466774,3217.4,3216.0,0.14453298]
[1768820300971,0.92697305,3217.3,3216.0,0.14453298]
[1768820301264,0.92697305,3217.2,3216.0,0.00382823]
[1768820301466,1.03188993,3217.0,3215.6,0.14070475]
[1768820301666,0.92697305,3216.9,3215.6,0.14070475]
[1768820302167,0.92697305,3216.9,3215.3,0.1556]
[1768820302362,1.03188993,3216.6,3215.3,0.00381222]
[1768820302564,0.92697305,3216.5,3215.3,0.00381222]
[1768820302768,0.92697305,3216.4,3215.3,0.00381222]
[1768820302968,1.03188993,3216.6,3215.3,0.00381222]
[1768820303169,0.9267615,3216.5,3215.3,0.00381222]
[1768820303370,0.9267615,3216.4,3215.3,0.00381222]
[1768820303575,1.03188993,3216.6,3215.3,0.00381222]
[1768820303870,0.92618848,3216.5,3215.3,0.00381222]
[1768820304071,1.03188993,3216.6,3215.3,0.00381222]
[1768820304274,0.92578394,3216.5,3215.3,0.00381222]
[1768820304473,1.03188993,3216.6,3215.3,0.00381222]
[1768820304676,0.92578394,3216.5,3215.3,0.00381222]
[1768820304878,1.03188993,3216.6,3215.3,0.00381222]
[1768820305176,0.92578386,3216.5,3215.3,0.00381222]
[1768820305379,1.03188993,3216.6,3215.3,0.00381222]
[1768820305580,0.92542218,3216.5,3215.3,0.00381222]
[1768820305777,1.03188993,3216.6,3215.3,0.00381222]
[1768820309282,1.12619095,3216.6,3215.3,0.00381222]
[1768820309479,0.92452443,3216.5,3215.3,0.00381222]
[1768820309678,1.12619095,3216.6,3215.3,0.00381222]
[1768820309877,0.92452443,3216.5,3215.3,0.00381222]
[1768820310079,1.12619095,3216.6,3215.3,0.00381222]
[1768820310683,0.92540014,3216.5,3215.3,0.00381222]
[1768820310883,1.12619095,3216.6,3215.3,0.00381222]
[1768820311068,0.92540031,3216.5,3215.3,0.00381222]
[1768820311272,1.12619095,3216.6,3215.3,0.00381222]
[1768820311484,0.92524249,3216.5,3215.3,0.00381222]
[1768820311673,1.12619095,3216.6,3215.3,0.00381222]
[1768820311877,0.92524267,3216.5,3215.3,0.00381222]
[1768820312077,1.12619095,3216.6,3215.3,0.00381222]
[1768820320885,1.03188993,3216.6,3215.3,0.00381222]
[1768820322094,0.09412104,3216.5,3215.3,0.00381222]
[1768820333122,0.92851308,3216.4,3215.3,0.00381222]
[1768820333306,0.92851308,3216.3,3215.3,0.00381222]
[1768820333604,0.92851308,3216.2,3215.3,0.00381222]
[1768820333800,0.92851308,3216.1,3215.3,0.00381222]
[1768820334021,0.09412104,3216.5,3215.3,0.00381222]
[1768820334205,0.92854188,3216.4,3215.3,0.00381222]
[1768820334506,0.92854188,3216.3,3215.3,0.00381222]
[1768820334707,0.92854188,3216.2,3215.3,0.00381222]
[1768820334910,0.92854188,3216.1,3215.3,0.00381222]
[1768820335110,0.09412104,3216.5,3215.3,0.00381222]
[1768820335408,0.92856642,3216.4,3215.3,0.00381222]
[1768820335608,0.92856642,3216.3,3215.3,0.00381222]
[1768820335908,0.92856642,3216.2,3215.3,0.00381222]
[1768820336108,0.92856642,3216.1,3215.3,0.00381222]
[1768820336310,0.09412104,3216.5,3215.3,0.00381222]
[1768820336509,0.92859826,3216.4,3215.3,0.00381222]
[1768820336710,0.92859826,3216.3,3215.3,0.00381222]
[1768820336916,0.92859826,3216.2,3215.3,0.00381222]
[1768820337218,0.92859826,3216.1,3215.3,0.00381222]
[1768820337419,0.09412104,3216.5,3215.3,0.00381222]
[1768820337621,0.9286397,3216.4,3215.3,0.00381222]
[1768820337811,0.9286397,3216.3,3215.3,0.00381222]
[1768820338009,0.9286397,3216.2,3215.3,0.00381222]
[1768820338321,0.9286397,3216.1,3215.3,0.00381222]
[1768820338617,0.09412104,3216.5,3215.3,0.00381222]
[1768820338816,0.92869164,3216.4,3215.3,0.00381222]
[1768820339016,0.92869164,3216.3,3215.3,0.00381222]
[1768820339206,0.92869164,3216.2,3215.3,0.00381222]
[1768820339402,0.92869164,3216.1,3215.3,0.00381222]
[1768820339603,0.09412104,3216.5,3215.3,0.00381222]
[1768820339804,0.92875484,3216.4,3215.3,0.00381222]
[1768820340020,0.92875484,3216.3,3215.3,0.00381222]
[1768820340221,0.92875484,3216.2,3215.3,0.00381222]
[1768820340517,0.92875484,3216.1,3215.3,0.00381222]
[1768820340724,0.09412104,3216.5,3215.3,0.00381222]
[1768820340916,0.92874834,3216.4,3215.3,0.00381222]
[1768820341214,0.92874834,3216.3,3215.3,0.00381222]
[1768820341422,0.92874834,3216.2,3215.3,0.00381222]
[1768820341616,0.92874834,3216.1,3215.3,0.00381222]
[1768820341814,0.09412104,3216.5,3215.3,0.00381222]
[1768820342120,0.92876897,3216.4,3215.3,0.00381222]
[1768820342311,0.09412104,3216.5,3215.3,0.00381222]
[1768820342312,0.92876897,3216.3,3215.3,0.00381222]
[1768820342512,0.92876897,3216.2,3215.3,0.00381222]
[1768820342716,0.92876897,3216.1,3215.3,0.00381222]
[1768820343012,0.92876897,3216.0,3215.3,0.00381222]
[1768820343319,0.09326441,3216.4,3215.0,0.15562]
[1768820343515,0.92880279,3216.3,3215.0,0.15562]
[1768820343723,0.92880279,3216.2,3215.0,0.15562]
[1768820344022,0.92880279,3216.1,3215.0,0.15562]
[1768820344222,0.92880279,3216.0,3215.0,0.15562]
[1768820344424,0.09326441,3216.4,3215.0,0.15881627]
[1768820344721,0.92881855,3216.3,3215.0,0.15881627]
[1768820345019,0.92881855,3216.2,3215.0,0.15881627]
[1768820345218,0.92881855,3216.1,3215.0,0.15881627]
[1768820345423,0.92881855,3216.0,3215.0,0.15881627]
[1768820345616,0.09326441,3216.4,3215.0,0.15881627]
[1768820345818,0.92884424,3216.3,3215.0,0.15881627]
[1768820346018,0.92884424,3216.2,3215.0,0.15881627]
[1768820346223,0.92884424,3216.1,3215.0,0.15881627]
[1768820346523,0.92884424,3216.0,3215.0,0.15881627]
[1768820346821,0.09326441,3216.4,3215.0,0.15881627]
[1768820347125,0.92886653,3216.3,3215.0,0.15881627]
[1768820347318,0.92886653,3216.2,3215.0,0.15881627]
[1768820347517,0.09326441,3216.4,3215.0,0.15881627]
[1768820347518,0.92886653,3216.1,3215.0,0.15881627]
[1768820347816,0.92886653,3216.0,3215.0,0.15881627]
[1768820348122,0.09326441,3216.4,3215.0,0.15881627]
[1768820348317,0.92893302,3216.3,3215.0,0.15881627]
[1768820348516,0.92893302,3216.2,3215.0,0.15881627]
[1768820348717,0.92893302,3216.1,3215.0,0.15881627]
[1768820348917,0.92893302,3216.0,3215.0,0.15881627]
[1768820349120,0.09326441,3216.4,3215.0,0.15881627]
[1768820349321,0.92898169,3216.3,3215.0,0.15881627]
[1768820349516,0.92898169,3216.2,3215.0,0.15881627]
[1768820349714,0.92898169,3216.1,3215.0,0.15881627]
[1768820349916,0.92898169,3216.0,3215.0,0.15881627]
[1768820350121,0.09326441,3216.4,3215.0,0.15881627]
[1768820350322,0.92903434,3216.3,3215.0,0.15881627]
[1768820350621,0.92903434,3216.2,3215.0,0.15881627]
[1768820350815,0.92903434,3216.1,3215.0,0.15881627]
[1768820351015,0.92903434,3216.0,3215.0,0.15881627]
[1768820351316,0.09326441,3216.4,3215.0,0.15881627]
[1768820351617,0.92917248,3216.3,3215.0,0.15881627]
[1768820351817,0.92917248,3216.2,3215.0,0.15881627]
[1768820352115,0.92917248,3216.1,3215.0,0.15881627]
[1768820352316,0.92917248,3216.0,3215.0,0.15881627]
[1768820352622,0.09326441,3216.4,3215.0,0.15881627]
[1768820352823,0.92916276,3216.3,3215.0,0.15881627]
[1768820353122,0.92916276,3216.2,3215.0,0.15881627]
[1768820353323,0.92916276,3216.1,3215.0,0.15881627]
[1768820353515,0.92916276,3216.0,3215.0,0.15881627]
[1768820353716,1.67944203,3216.6,3215.0,0.30312553]
[1768820353916,0.92914168,3216.5,3215.0,0.30312553]
[1768820354115,0.92914168,3216.4,3215.0,0.30312553]
[1768820354323,0.92914168,3216.3,3215.0,0.30312553]
[1768820354522,0.92914168,3216.2,3215.0,0.30312553]
[1768820354723,0.92914168,3216.1,3215.0,0.30312553]
[1768820354923,0.92914168,3216.0,3215.0,0.30312553]
[1768820355114,1.67944203,3216.6,3215.0,0.30312553]
[1768820355315,0.92913077,3216.5,3215.0,0.30312553]
[1768820355614,0.92913077,3216.4,3215.0,0.30312553]
[1768820355817,0.92913077,3216.3,3215.0,0.30312553]
[1768820356116,0.92913077,3216.2,3215.0,0.30312553]
[1768820356316,0.92913077,3216.1,3215.1,0.14430926]
[1768820356512,0.92913077,3216.0,3215.1,0.14430926]
[1768820356713,1.67944203,3216.6,3215.1,0.14430926]
[1768820356930,1.03261782,3216.3,3215.1,0.14430926]
[1768820357229,0.92911606,3216.2,3215.1,0.14430926]
[1768820357427,0.92911606,3216.1,3215.1,0.14430926]
[1768820357622,0.92911606,3216.0,3215.1,0.14430926]
[1768820357821,1.03261782,3216.3,3215.1,0.14430926]
[1768820358028,0.92910907,3216.2,3215.1,0.14430926]
[1768820358330,0.92910907,3216.1,3215.1,0.14430926]
[1768820358626,0.92910907,3216.0,3215.1,0.14430926]
[1768820358826,1.03261782,3216.3,3215.1,0.14430926]
[1768820359026,0.92911013,3216.2,3215.1,0.14430926]
[1768820359228,0.92911013,3216.1,3215.1,0.14430926]
[1768820359524,0.92911013,3216.0,3215.1,0.14430926]
[1768820359726,1.03261782,3216.3,3215.1,0.14430926]
[1768820359922,0.92910661,3216.2,3215.1,0.14430926]
[1768820360119,1.03261782,3216.3,3215.1,0.14430926]
[1768820360120,0.92910661,3216.1,3215.1,0.14430926]
[1768820360321,0.92910661,3216.0,3215.1,0.14430926]
[1768820360527,1.03261782,3216.3,3215.1,0.14430926]
[1768820360729,0.92911759,3216.2,3215.1,0.14430926]
[1768820360922,0.92911759,3216.1,3215.1,0.14430926]
[1768820361221,0.92911759,3216.0,3215.1,0.14430926]
[1768820361421,1.03261782,3216.3,3215.1,0.14430926]
[1768820361621,0.92911946,3216.2,3215.1,0.14430926]
[1768820361820,1.03261782,3216.3,3215.1,0.14430926]
[1768820361821,0.92911946,3216.1,3215.1,0.14430926]
[1768820362021,0.92911946,3216.0,3215.1,0.14430926]
[1768820362230,1.03261782,3216.3,3215.1,0.14430926]
[1768820362430,0.92912015,3216.2,3215.1,0.14430926]
[1768820362631,0.92912015,3216.1,3215.1,0.14430926]
[1768820362831,0.92912015,3216.0,3215.1,0.14430926]
[1768820363024,1.03261782,3216.3,3215.1,0.14430926]
[1768820363225,0.92912123,3216.2,3215.1,0.14430926]
[1768820363525,0.92912123,3216.1,3215.1,0.14430926]
[1768820363725,0.92912123,3216.0,3215.1,0.14430926]
[1768820363926,1.03261782,3216.3,3215.1,0.14430926]
[1768820364122,0.92911867,3216.2,3215.1,0.14430926]
[1768820364323,0.92911867,3216.1,3215.1,0.14430926]
[1768820364524,0.92911867,3216.0,3215.1,0.14430926]
[1768820364725,1.03261782,3216.3,3215.1,0.14430926]
[1768820364925,0.92911912,3216.2,3215.1,0.14430926]
[1768820365127,0.92911912,3216.1,3215.1,0.14430926]
[1768820365328,0.92911912,3216.0,3215.1,0.14430926]
[1768820365529,1.03261782,3216.3,3215.1,0.14430926]
[1768820365834,0.92911988,3216.2,3215.1,0.14430926]
[1768820366137,0.92911988,3216.1,3215.1,0.14430926]
[1768820366334,0.92911988,3216.0,3215.1,0.14430926]
[1768820366542,1.03261782,3216.3,3215.1,0.14430926]
[1768820366833,0.92912077,3216.2,3215.1,0.14430926]
[1768820367034,0.92912077,3216.1,3215.1,0.14430926]
[1768820367237,0.92912077,3216.0,3215.1,0.14430926]
[1768820367432,1.03261782,3216.3,3215.1,0.14430926]
[1768820367728,0.92908591,3216.2,3215.1,0.14430926]
[1768820367921,0.92908591,3216.1,3215.1,0.14430926]
[1768820368126,0.92908782,3216.0,3215.1,0.14430926]
[1768820368333,1.03261782,3216.3,3215.1,0.14430926]
[1768820368534,0.92908385,3216.2,3215.1,0.14430926]
[1768820368735,0.92908385,3216.1,3215.1,0.14430926]
[1768820368935,0.92908385,3216.0,3215.1,0.14430926]
[1768820369135,1.03261782,3216.3,3215.1,0.14430926]
[1768820369436,0.92908465,3216.2,3215.1,0.14430926]
[1768820369733,0.92908465,3216.1,3215.1,0.14430926]
[1768820369936,0.92908465,3216.0,3215.1,0.14430926]
[1768820370134,1.03261782,3216.3,3215.1,0.14430926]
[1768820370334,0.92959881,3216.2,3215.1,0.14430926]
[1768820370536,0.92959881,3216.1,3215.1,0.14430926]
[1768820370835,1.03261782,3216.3,3215.1,0.14430926]
[1768820371036,0.92958106,3216.2,3215.1,0.14430926]
[1768820371238,0.92958106,3216.1,3215.1,0.14430926]
[1768820371423,1.03261782,3216.3,3215.1,0.14430926]
[1768820371630,0.92957894,3216.2,3215.1,0.14430926]
[1768820371831,0.92957894,3216.1,3215.1,0.14430926]
[1768820372126,1.03261782,3216.3,3215.1,0.14430926]
[1768820372325,0.92957894,3216.2,3215.1,0.14430926]
[1768820372530,1.67944203,3216.7,3215.6,0.13028741]
[1768820372839,0.92955557,3216.6,3215.6,0.13028741]
[1768820373037,1.03261782,3216.7,3215.6,0.13028741]
[1768820373038,0.92955557,3216.5,3215.6,0.13028741]
[1768820373337,0.92955557,3216.4,3215.6,0.13028741]
[1768820373537,0.92955557,3216.3,3215.6,0.13028741]
[1768820373740,0.92955557,3216.2,3215.6,0.13028741]
[1768820373931,1.03261782,3216.7,3215.6,0.13028741]
[1768820374230,0.9293897,3216.6,3215.6,0.13028741]
[1768820374430,0.9293897,3216.5,3215.6,0.13028741]
[1768820374632,0.9293897,3216.4,3215.6,0.13028741]
[1768820374834,0.9293897,3216.3,3215.6,0.13028741]
[1768820375037,0.9293897,3216.2,3215.6,0.13028741]
[1768820375237,1.03261782,3216.7,3215.6,0.13028741]
[1768820375431,0.92929706,3216.6,3215.6,0.13028741]
[1768820375632,0.92929706,3216.5,3215.6,0.13028741]
[1768820375835,0.92929706,3216.4,3215.6,0.13028741]
[1768820376136,0.92929706,3216.3,3215.6,0.13028741]
[1768820376337,0.92929706,3216.2,3215.6,0.13028741]
[1768820376634,2.71205985,3216.8,3215.6,0.13028741]
[1768820376941,0.92917457,3216.7,3215.6,0.13028741]
[1768820377133,0.92917457,3216.6,3215.6,0.13028741]
[1768820377327,0.92917457,3216.5,3215.6,0.13028741]
[1768820377532,0.92917457,3216.4,3215.6,0.13028741]
[1768820377732,0.92917457,3216.3,3215.6,0.13028741]
[1768820377934,2.71205985,3216.8,3215.6,0.13028741]
[1768820378133,0.92838958,3216.7,3215.6,0.13028741]
[1768820378443,0.92838958,3216.6,3215.6,0.13028741]
[1768820378740,0.92838958,3216.5,3215.6,0.13028741]
[1768820378940,2.71205985,3216.8,3215.6,0.13028741]
[1768820378941,0.92838958,3216.4,3215.6,0.13028741]
[1768820379133,0.92838958,3216.3,3215.6,0.13028741]
[1768820379337,2.71205985,3216.8,3215.6,0.13028741]
[1768820379641,0.9283262,3216.7,3215.6,0.13028741]
[1768820379842,0.9283262,3216.6,3215.6,0.13028741]
[1768820380035,0.9283262,3216.5,3215.6,0.13028741]
[1768820380240,0.9283262,3216.4,3215.6,0.13028741]
[1768820380443,0.9283262,3216.3,3215.6,0.13028741]
[1768820380744,2.71205985,3216.8,3215.6,0.13028741]
[1768820380944,0.92829415,3216.7,3215.6,0.13028741]
[1768820381241,0.92829415,3216.6,3215.6,0.13028741]
[1768820381449,0.92829415,3216.5,3215.6,0.13028741]
[1768820381639,0.92829415,3216.4,3215.6,0.13028741]
[1768820381839,0.92829415,3216.3,3215.6,1.16290523]
[1768820382040,1.67944203,3216.9,3215.6,1.16290523]
[1768820382239,0.92826866,3216.8,3215.8,1.16792183]
[1768820382446,0.92826866,3216.7,3215.8,1.16792183]
[1768820382648,0.92826866,3216.6,3215.8,1.16792183]
[1768820382944,2.86756985,3217.2,3215.8,1.16792183]
[1768820383138,0.92794274,3217.1,3215.8,1.16792183]
[1768820383339,0.92794274,3217.0,3215.8,1.16792183]
[1768820383542,0.92794274,3216.9,3215.8,1.16792183]
[1768820383742,0.92794274,3216.8,3215.8,1.16792183]
[1768820383942,0.92794274,3216.7,3215.8,1.16792183]
[1768820384145,1.18812782,3217.2,3215.8,1.16792183]
[1768820384336,0.92768202,3217.1,3215.8,1.16792183]
[1768820384537,0.92768202,3217.0,3215.8,1.16792183]
[1768820384836,0.92768202,3216.9,3215.8,1.16792183]
[1768820385143,0.92768202,3216.8,3215.8,1.16792183]
[1768820385350,0.92768202,3216.7,3215.8,1.16792183]
[1768820385649,1.18812782,3217.2,3215.8,1.16792183]
[1768820385949,0.92730941,3217.1,3215.8,1.16792183]
[1768820386142,0.92730941,3217.0,3215.8,1.16792183]
[1768820386343,0.92730941,3216.9,3215.8,1.16792183]
[1768820386546,0.92730941,3216.8,3215.8,1.16792183]
[1768820386843,1.18812782,3217.2,3215.8,1.16792183]
[1768820387039,0.9271775,3217.1,3215.8,1.16792183]
[1768820387239,0.9271775,3217.0,3215.8,1.16792183]
[1768820387450,0.9271775,3216.9,3215.8,1.16792183]
[1768820387649,0.9271775,3216.8,3215.8,1.16792183]
[1768820387850,1.03261782,3217.2,3215.8,1.16792183]
[1768820388150,0.92703504,3217.1,3215.9,0.13530401]
[1768820388449,0.92703504,3217.0,3215.9,0.13530401]
[1768820388645,0.92703504,3216.9,3215.9,0.13530401]
[1768820388847,0.92703504,3216.8,3215.9,0.13530401]
[1768820389147,1.03261782,3217.2,3215.9,0.13530401]
[1768820389450,0.92694371,3217.1,3215.9,0.13530401]
[1768820389639,0.92694371,3217.0,3215.9,0.13530401]
[1768820389837,0.92694371,3216.9,3215.9,0.13530401]
[1768820390052,0.92694371,3216.8,3215.6,1.18820782]
[1768820390251,1.03261782,3216.8,3215.6,1.18820782]
[1768820390552,1.03261782,3216.8,3215.6,0.15559]
[1768820391654,1.03261782,3217.0,3215.6,1.32351183]
[1768820391851,0.92679254,3216.9,3215.7,0.13530401]
[1768820392041,0.92679254,3216.8,3215.7,0.13530401]
[1768820392238,1.03261782,3217.0,3215.7,0.13530401]
[1768820392454,0.92679598,3216.9,3215.7,0.13530401]
[1768820392754,0.92679598,3216.8,3215.7,0.13530401]
[1768820392956,1.03261782,3217.0,3215.7,0.13530401]
[1768820393154,0.92676924,3216.9,3215.7,0.13530401]
[1768820393355,0.92676924,3216.8,3215.7,0.13530401]
[1768820393557,1.03261782,3217.0,3215.7,0.13530401]
[1768820393752,0.92675574,3216.9,3215.7,0.13530401]
[1768820394052,0.92675574,3216.8,3215.7,0.13530401]
[1768820394251,1.93134682,3217.4,3215.7,0.13530401]
[1768820394449,0.92673055,3217.3,3215.7,0.13530401]
[1768820394657,0.92673055,3217.2,3215.7,0.13530401]
[1768820394845,0.92673055,3217.1,3215.7,0.13530401]
[1768820395050,0.92673055,3217.0,3215.7,0.13530401]
[1768820395255,0.92673055,3216.9,3215.7,0.13530401]
[1768820395455,0.92673055,3216.8,3215.7,0.13530401]
[1768820395652,1.03261782,3217.3,3215.7,0.13530401]